[Event "NJSK 2023 Jeugd C"]
[Site "Almelo, Netherlands"]
[Date "2023.05.04"]
[Round "6.3"]
[White "Kurt, Sascha"]
[Black "Roolvink, William"]
[Result "1/2-1/2"]
[TimeControl "90min/40moves + 30min + 30sec/move"]
[WhiteElo "1894"]
[BlackElo "1852"]

1. e4 {[%clk 01:30:53]} {[%emt 00:00:07]} c6 {[%clk 01:30:59]} {[%emt
00:00:02]} 2. d4 {[%clk 01:31:18]} {[%emt 00:00:05]} d5 {[%clk 01:31:28]}
{[%emt 00:00:01]} 3. Nc3 {[%clk 01:31:28]} {[%emt 00:00:20]} dxe4 {[%clk
01:31:56]} {[%emt 00:00:02]} 4. Nxe4 {[%clk 01:31:50]} {[%emt 00:00:08]} Nf6
{[%clk 01:32:23]} {[%emt 00:00:03]} 5. Nxf6+ {[%clk 01:32:12]} {[%emt
00:00:07]} exf6 {[%clk 01:32:51]} {[%emt 00:00:02]} 6. c3 {[%clk 01:32:29]}
{[%emt 00:00:14]} Bd6 {[%clk 01:32:58]} {[%emt 00:00:23]} 7. Bd3 {[%clk
01:32:49]} {[%emt 00:00:08]} O-O {[%clk 01:33:26]} {[%emt 00:00:04]} 8. Qc2
{[%clk 01:33:14]} {[%emt 00:00:05]} Re8+ {[%clk 01:33:52]} {[%emt 00:00:04]} 9.
Ne2 {[%clk 01:33:39]} {[%emt 00:00:05]} h5 {[%clk 01:34:19]} {[%emt 00:00:04]}
10. O-O {[%clk 01:33:59]} {[%emt 00:00:09]} Nd7 {[%clk 01:33:35]} {[%emt
00:01:14]} 11. Be3 {[%clk 01:31:46]} {[%emt 00:02:43]} h4 {[%clk 01:19:19]}
{[%emt 00:14:47]} 12. h3 {[%clk 01:31:47]} {[%emt 00:00:29]} Nf8 {[%clk
01:16:42]} {[%emt 00:03:08]} 13. Rad1 {[%clk 01:30:03]} {[%emt 00:02:13]} Be6
{[%clk 01:04:06]} {[%emt 00:13:07]} 14. c4 {[%clk 01:27:55]} {[%emt 00:02:39]}
Rc8 {[%clk 01:02:31]} {[%emt 00:02:04]} 15. Nf4 {[%clk 01:24:25]} {[%emt
00:04:00]} Bb8 {[%clk 01:01:13]} {[%emt 00:01:49]} 16. Ne2 {[%clk 00:57:51]}
{[%emt 00:27:04]} Qd7 {[%clk 00:36:00]} {[%emt 00:25:43]} 17. Bf4 {[%clk
00:46:28]} {[%emt 00:11:54]} Ng6 {[%clk 00:29:58]} {[%emt 00:06:31]} 18. Bxb8
{[%clk 00:46:10]} {[%emt 00:00:47]} Rxb8 {[%clk 00:29:55]} {[%emt 00:00:34]} 19.
Kh2 {[%clk 00:38:29]} {[%emt 00:08:11]} Ne7 {[%clk 00:22:13]} {[%emt 00:08:13]}
20. Be4 {[%clk 00:36:19]} {[%emt 00:02:39]} Bf5 {[%clk 00:14:57]} {[%emt
00:07:46]} 21. Bxf5 {[%clk 00:31:18]} {[%emt 00:05:30]} Qxf5 {[%clk 00:10:59]}
{[%emt 00:04:28]} 22. Qxf5 {[%clk 00:31:37]} {[%emt 00:00:12]} Nxf5 {[%clk
00:11:27]} {[%emt 00:00:02]} 23. Nc3 {[%clk 00:31:21]} {[%emt 00:00:46]} Nd6
{[%clk 00:07:00]} {[%emt 00:04:57]} 24. b3 {[%clk 00:31:15]} {[%emt 00:00:36]}
Ne4 {[%clk 00:06:15]} {[%emt 00:01:16]} 25. Nxe4 {[%clk 00:30:38]} {[%emt
00:01:07]} Rxe4 {[%clk 00:06:38]} {[%emt 00:00:07]} 26. Rfe1 {[%clk 00:30:10]}
{[%emt 00:00:57]} Rbe8 {[%clk 00:05:45]} {[%emt 00:01:24]} 27. Rxe4 {[%clk
00:30:29]} {[%emt 00:00:12]} Rxe4 {[%clk 00:06:13]} {[%emt 00:00:01]} 28. Rd2
{[%clk 00:30:20]} {[%emt 00:00:39]} Kf8 {[%clk 00:06:24]} {[%emt 00:00:19]} 29.
g3 {[%clk 00:30:07]} {[%emt 00:00:43]} Ke7 {[%clk 00:06:20]} {[%emt 00:00:35]}
30. Kg2 {[%clk 00:30:05]} {[%emt 00:00:31]} f5 {[%clk 00:04:00]} {[%emt
00:02:51]} 31. f3 {[%clk 00:28:39]} {[%emt 00:01:56]} Re6 {[%clk 00:03:53]}
{[%emt 00:00:36]} 32. gxh4 {[%clk 00:27:26]} {[%emt 00:01:45]} f4 {[%clk
00:03:53]} {[%emt 00:00:30]} 33. h5 {[%clk 00:27:13]} {[%emt 00:00:44]} f5
{[%clk 00:02:43]} {[%emt 00:01:40]} 34. d5 {[%emt 00:10:03]} cxd5 {[%clk
00:01:01]} 35. cxd5 {[%clk 00:20:15]} {[%emt 00:00:07]} Rh6 {[%clk 00:00:48]}
{[%emt 00:00:43]} 36. Rd4 {[%clk 00:20:17]} {[%emt 00:00:27]} Rxh5 {[%clk
00:01:15]} {[%emt 00:00:04]} 37. Rxf4 {[%clk 00:20:37]} {[%emt 00:00:09]} Kd6
{[%clk 00:01:35]} {[%emt 00:00:11]} 38. Rd4 {[%clk 00:20:57]} {[%emt 00:00:10]}
g5 {[%clk 00:00:56]} {[%emt 00:01:10]} 39. Kg3 {[%clk 00:19:18]} {[%emt
00:02:08]} Rh7 {[%clk 00:00:54]} {[%emt 00:00:32]} 40. Rd2 {[%clk 00:18:55]}
{[%emt 00:00:53]} Rh4 {[%clk 00:00:37]} {[%emt 00:00:49]} 41. a3 {[%emt
00:01:13]} Rh7 {[%clk 00:00:54]} 42. Rd3 {[%clk 00:17:41]} {[%emt 00:01:13]}
Rh4 {[%clk 00:00:55]} {[%emt 00:00:29]} 43. Rd1 {[%clk 00:17:13]} {[%emt
00:00:57]} Rh7 {[%clk 00:01:20]} {[%emt 00:00:05]} 44. Rd4 {[%clk 00:17:40]}
{[%emt 00:00:03]} Rh8 {[%clk 00:00:49]} {[%emt 00:01:02]} 45. f4 {[%clk
00:13:01]} {[%emt 00:05:09]} gxf4+ {[%clk 00:00:50]} {[%emt 00:00:29]} 46. Rxf4
{[%clk 00:13:22]} {[%emt 00:00:09]} Rh5 {[%clk 00:00:36]} {[%emt 00:00:45]} 47.
Rd4 {[%clk 00:12:40]} {[%emt 00:01:12]} Ke5 {[%clk 00:00:37]} {[%emt 00:00:29]}
48. Rd1 {[%clk 00:12:39]} {[%emt 00:00:27]} Kd6 {[%clk 00:00:36]} {[%emt
00:00:36]} 49. Rd3 {[%clk 00:12:45]} {[%emt 00:00:23]} Rg5+ {[%clk 00:00:36]}
{[%emt 00:00:30]} 50. Kf4 {[%clk 00:06:07]} {[%emt 00:07:08]} Rh5 {[%clk
00:00:45]} {[%emt 00:00:21]} 51. b4 {[%clk 00:05:29]} {[%emt 00:01:08]} b5
{[%clk 00:00:56]} {[%emt 00:00:19]} 52. Kg3 {[%clk 00:05:39]} {[%emt 00:00:18]}
Rg5+ {[%clk 00:00:57]} {[%emt 00:00:31]} 53. Kf3 {[%clk 00:05:41]} {[%emt
00:00:28]} Rh5 {[%clk 00:00:39]} {[%emt 00:00:48]} 54. Kf4 {[%clk 00:06:05]}
{[%emt 00:00:06]} a6 {[%clk 00:00:49]} {[%emt 00:00:20]} 55. Kg3 {[%clk
00:06:26]} {[%emt 00:00:09]} Rh8 {[%clk 00:00:32]} {[%emt 00:00:48]} 56. h4
{[%clk 00:03:00]} {[%emt 00:03:55]} Rh7 {[%clk 00:00:41]} {[%emt 00:00:22]} 57.
Rd1 {[%clk 00:02:50]} {[%emt 00:00:38]} Rh5 {[%clk 00:00:36]} {[%emt 00:00:36]}
58. Rd2 {[%clk 00:02:15]} {[%emt 00:01:04]} Rh8 {[%clk 00:00:41]} {[%emt
00:00:26]} 59. Rh2 {[%clk 00:01:47]} {[%emt 00:00:58]} Rh5 {[%clk 00:00:55]}
{[%emt 00:00:16]} 60. Rd2 {[%clk 00:01:58]} {[%emt 00:00:19]} Rh8 {[%clk
00:01:10]} {[%emt 00:00:15]} 61. Kh3 {[%clk 00:01:49]} {[%emt 00:00:39]} Rh5
{[%clk 00:01:15]} {[%emt 00:00:25]} 62. Rg2 {[%clk 00:02:01]} {[%emt 00:02:47]}
Kxd5 {[%clk 00:00:37]} {[%emt 00:01:09]} 63. Rg5 {[%clk 00:02:25]} {[%emt
00:00:06]} Rxg5 {[%clk 00:00:47]} {[%emt 00:00:20]} 64. hxg5 {[%clk 00:02:51]}
{[%emt 00:00:04]} Ke5 {[%clk 00:00:35]} {[%emt 00:00:43]} 65. Kh4 {[%clk
00:02:40]} {[%emt 00:00:40]} f4 {[%clk 00:00:36]} {[%emt 00:00:30]} 66. Kg4
{[%clk 00:01:32]} {[%emt 00:01:38]} Ke4 {[%clk 00:00:51]} {[%emt 00:00:15]} 67.
g6 {[%clk 00:01:50]} {[%emt 00:00:11]} f3 {[%clk 00:01:18]} {[%emt 00:00:03]}
68. g7 {[%clk 00:02:02]} {[%emt 00:00:18]} f2 {[%clk 00:01:38]} {[%emt
00:00:10]} 69. g8=Q {[%clk 00:02:26]} {[%emt 00:00:07]} f1=Q {[%clk 00:01:42]}
{[%emt 00:00:26]} 70. Qe6+ {[%clk 00:02:24]} {[%emt 00:00:30]} Kd4 {[%clk
00:01:20]} {[%emt 00:00:46]} 71. Qxa6 {[%clk 00:02:46]} {[%emt 00:00:15]} Qg2
{[%clk 00:01:02]} {[%emt 00:00:48]} 72. Kf5 {[%clk 00:02:48]} {[%emt 00:00:24]}
Qh3+ {[%clk 00:00:53]} {[%emt 00:00:42]} 73. Kg6 {[%clk 00:03:06]} {[%emt
00:00:10]} Qg4+ {[%clk 00:00:58]} {[%emt 00:00:28]} 74. Kf7 {[%clk 00:03:04]}
{[%emt 00:00:31]} Qd7+ {[%clk 00:00:48]} {[%emt 00:00:41]} 75. Kf6 {[%clk
00:02:50]} {[%emt 00:00:44]} Qd8+ {[%clk 00:01:03]} {[%emt 00:00:14]} 76. Ke6
{[%clk 00:02:17]} {[%emt 00:01:05]} Qe8+ {[%clk 00:01:26]} {[%emt 00:00:07]} 77.
Kf6 {[%clk 00:02:19]} {[%emt 00:00:25]} Qd8+ {[%clk 00:01:52]} {[%emt
00:00:06]} 78. Kf5 {[%clk 00:02:36]} {[%emt 00:00:11]} Qf8+ {[%clk 00:02:13]}
{[%emt 00:00:11]} 79. Kg4 {[%clk 00:02:22]} {[%emt 00:00:42]} Qg8 {[%clk
00:02:03]} {[%emt 00:00:42]} 80. Kf3 {[%clk 00:02:34]} {[%emt 00:00:16]} Qd5+
{[%clk 00:02:21]} {[%emt 00:00:13]} 1/2-1/2

[Event "NJSK 2023 Jeugd C"]
[Site "Almelo, Netherlands"]
[Date "2023.05.04"]
[Round "6.4"]
[White "Krylov, Philippe"]
[Black "Aravindhan, Achyuth"]
[Result "1-0"]
[TimeControl "90min/40moves + 30min + 30sec/move"]
[WhiteElo "1858"]
[BlackElo "1833"]

1. d4 {[%clk 01:30:57]} {[%emt 00:00:03]} Nf6 {[%clk 01:30:53]} {[%emt
00:00:07]} 2. c4 {[%clk 01:31:24]} {[%emt 00:00:04]} g6 {[%clk 01:31:10]}
{[%emt 00:00:12]} 3. Nc3 {[%clk 01:31:51]} {[%emt 00:00:04]} Bg7 {[%clk
01:31:35]} {[%emt 00:00:04]} 4. Nf3 {[%clk 01:31:37]} {[%emt 00:00:44]} O-O
{[%clk 01:31:56]} {[%emt 00:00:09]} 5. Bf4 {[%clk 01:32:04]} {[%emt 00:00:03]}
d6 {[%clk 01:32:15]} {[%emt 00:00:11]} 6. e3 {[%clk 01:32:30]} {[%emt
00:00:04]} Nbd7 {[%clk 01:32:41]} {[%emt 00:00:05]} 7. Be2 {[%clk 01:32:54]}
{[%emt 00:00:06]} e5 {[%clk 01:32:58]} {[%emt 00:00:12]} 8. dxe5 {[%clk
01:15:02]} {[%emt 00:18:22]} dxe5 {[%clk 01:33:15]} {[%emt 00:00:14]} 9. Nxe5
{[%clk 01:15:27]} {[%emt 00:00:04]} Nh5 {[%clk 01:33:36]} {[%emt 00:00:09]} 10.
Bxh5 {[%clk 01:03:48]} {[%emt 00:12:10]} Nxe5 {[%clk 01:33:39]} {[%emt
00:00:27]} 11. Be2 {[%clk 01:03:51]} {[%emt 00:00:26]} Be6 {[%clk 01:33:41]}
{[%emt 00:00:28]} 12. Bxe5 {[%clk 00:55:52]} {[%emt 00:08:30]} Bxe5 {[%clk
01:33:47]} {[%emt 00:00:23]} 13. Qxd8 {[%clk 00:55:26]} {[%emt 00:00:56]} Raxd8
{[%clk 01:33:56]} {[%emt 00:00:22]} 14. Rd1 {[%clk 00:53:40]} {[%emt 00:02:16]}
Bxc3+ {[%clk 01:26:39]} {[%emt 00:07:47]} 15. bxc3 {[%clk 00:53:51]} {[%emt
00:00:19]} c5 {[%clk 01:25:23]} {[%emt 00:01:47]} 16. O-O {[%clk 00:52:06]}
{[%emt 00:02:14]} b6 {[%clk 01:25:40]} {[%emt 00:00:13]} 17. f3 {[%clk
00:44:49]} {[%emt 00:07:48]} Kg7 {[%clk 01:19:16]} {[%emt 00:06:53]} 18. Kf2
{[%clk 00:44:16]} {[%emt 00:01:04]} Kf6 {[%clk 01:12:19]} {[%emt 00:07:27]} 19.
e4 {[%clk 00:41:06]} {[%emt 00:03:39]} Ke7 {[%clk 01:02:57]} {[%emt 00:09:51]}
20. f4 {[%clk 00:40:24]} {[%emt 00:01:13]} h5 {[%clk 00:50:01]} {[%emt
00:13:26]} 21. Ke3 {[%clk 00:37:15]} {[%emt 00:03:39]} f5 {[%clk 00:47:23]}
{[%emt 00:03:08]} 22. e5 {[%clk 00:35:59]} {[%emt 00:01:47]} Rxd1 {[%clk
00:46:35]} {[%emt 00:01:18]} 23. Rxd1 {[%clk 00:36:20]} {[%emt 00:00:09]} Rd8
{[%clk 00:46:57]} {[%emt 00:00:07]} 24. Rxd8 {[%clk 00:34:30]} {[%emt
00:02:20]} Kxd8 {[%clk 00:47:13]} {[%emt 00:00:14]} 25. Kd3 {[%clk 00:34:30]}
{[%emt 00:00:30]} Kd7 {[%clk 00:47:26]} {[%emt 00:00:16]} 26. Bf3 {[%clk
00:34:50]} {[%emt 00:00:10]} Ke7 {[%clk 00:47:45]} {[%emt 00:00:11]} 27. Bd5
{[%clk 00:35:16]} {[%emt 00:00:05]} Kd7 {[%clk 00:48:07]} {[%emt 00:00:08]} 28.
Ke3 {[%clk 00:32:35]} {[%emt 00:03:11]} Ke7 {[%clk 00:47:51]} {[%emt 00:00:45]}
29. Bxe6 {[%clk 00:29:00]} {[%emt 00:04:05]} Kxe6 {[%clk 00:48:13]} {[%emt
00:00:08]} 30. Kf3 {[%clk 00:29:29]} Ke7 {[%clk 00:48:28]} {[%emt 00:00:15]} 31.
Kg3 {[%clk 00:29:54]} {[%emt 00:00:05]} Ke6 {[%clk 00:39:49]} {[%emt 00:09:09]}
32. Kh4 {[%clk 00:30:20]} {[%emt 00:00:05]} a6 {[%clk 00:40:10]} {[%emt
00:00:08]} 33. a4 {[%clk 00:30:39]} {[%emt 00:00:11]} Ke7 {[%clk 00:40:31]}
{[%emt 00:00:09]} 34. Kg5 {[%clk 00:31:06]} {[%emt 00:00:03]} Kf7 {[%clk
00:40:57]} {[%emt 00:00:03]} 35. g3 {[%clk 00:31:28]} {[%emt 00:00:08]} a5
{[%clk 00:41:06]} {[%emt 00:00:22]} 36. h3 {[%clk 00:31:40]} {[%emt 00:00:17]}
Kg7 {[%clk 00:41:08]} {[%emt 00:00:28]} 37. e6 {[%clk 00:32:06]} {[%emt
00:00:05]} Kf8 {[%clk 00:41:22]} {[%emt 00:00:16]} 38. Kf6 {[%clk 00:32:31]}
{[%emt 00:00:04]} Ke8 {[%clk 00:41:36]} {[%emt 00:00:16]} 39. h4 {[%clk
00:32:44]} {[%emt 00:00:17]} Kf8 {[%clk 00:41:57]} {[%emt 00:00:08]} 40. e7+
{[%clk 00:32:32]} {[%emt 00:00:42]} Ke8 {[%clk 00:42:19]} {[%emt 00:00:08]} 41.
Ke6 {[%clk 00:32:42]} {[%emt 00:00:21]} 1-0

[Event "NJSK 2023 Jeugd C"]
[Site "Almelo, Netherlands"]
[Date "2023.05.04"]
[Round "6.5"]
[White "Zecha, Oscar"]
[Black "Zhu, Chenwu"]
[Result "1/2-1/2"]
[TimeControl "90min/40moves + 30min + 30sec/move"]
[WhiteElo "1879"]
[BlackElo "2052"]

1. d4 {[%clk 01:30:58]} {[%emt 00:00:01]} d5 {[%clk 01:30:55]} {[%emt
00:00:05]} 2. c4 {[%clk 01:31:26]} {[%emt 00:00:02]} e6 {[%clk 01:31:22]}
{[%emt 00:00:03]} 3. Nf3 {[%clk 01:31:53]} {[%emt 00:00:03]} Nf6 {[%clk
01:31:49]} {[%emt 00:00:03]} 4. g3 {[%clk 01:32:15]} {[%emt 00:00:08]} c5
{[%clk 01:32:15]} {[%emt 00:00:04]} 5. cxd5 {[%clk 01:32:41]} {[%emt 00:00:04]}
Nxd5 {[%clk 01:32:39]} {[%emt 00:00:06]} 6. Bg2 {[%clk 01:29:53]} {[%emt
00:03:18]} cxd4 {[%clk 01:31:32]} {[%emt 00:01:37]} 7. O-O {[%clk 01:29:41]}
{[%emt 00:00:42]} Bc5 {[%clk 01:30:58]} {[%emt 00:01:04]} 8. a3 {[%clk
01:26:58]} {[%emt 00:03:14]} O-O {[%clk 01:30:21]} {[%emt 00:01:06]} 9. b4
{[%clk 01:27:09]} {[%emt 00:00:18]} Be7 {[%clk 01:29:51]} {[%emt 00:01:01]} 10.
Bb2 {[%clk 01:24:45]} {[%emt 00:02:55]} Bd7 {[%clk 01:20:55]} {[%emt 00:09:25]}
11. Nxd4 {[%clk 01:22:29]} {[%emt 00:02:46]} Nc6 {[%clk 01:18:45]} {[%emt
00:02:41]} 12. Qb3 {[%clk 01:17:48]} {[%emt 00:05:10]} Bf6 {[%clk 01:11:27]}
{[%emt 00:07:48]} 13. Rd1 {[%clk 01:10:22]} {[%emt 00:07:56]} Nxd4 {[%clk
01:01:17]} {[%emt 00:10:40]} 14. Bxd4 {[%clk 01:09:35]} {[%emt 00:01:17]} Bxd4
{[%clk 01:00:45]} {[%emt 00:01:02]} 15. Rxd4 {[%clk 01:10:04]} {[%emt
00:00:01]} Qb6 {[%clk 00:58:23]} {[%emt 00:02:53]} 16. e3 {[%clk 01:09:18]}
{[%emt 00:01:15]} Bc6 {[%clk 00:54:36]} {[%emt 00:04:17]} 17. Nd2 {[%clk
01:09:10]} {[%emt 00:00:38]} Nf6 {[%clk 00:53:50]} {[%emt 00:01:15]} 18. Nc4
{[%clk 01:01:53]} {[%emt 00:07:48]} Qc7 {[%clk 00:53:13]} {[%emt 00:01:07]} 19.
Bxc6 {[%clk 00:58:00]} {[%emt 00:04:23]} Qxc6 {[%clk 00:52:35]} {[%emt
00:01:08]} 20. Rad1 {[%clk 00:56:29]} {[%emt 00:02:00]} Qc7 {[%clk 00:51:09]}
{[%emt 00:01:57]} 21. Qd3 {[%clk 00:56:31]} {[%emt 00:00:28]} Rac8 {[%clk
00:47:29]} {[%emt 00:04:11]} 22. Nd6 {[%clk 00:52:57]} {[%emt 00:04:04]} Ra8
{[%clk 00:44:09]} {[%emt 00:03:49]} 23. Nb5 {[%clk 00:42:24]} {[%emt 00:11:03]}
Qe5 {[%clk 00:42:53]} {[%emt 00:01:45]} 24. Rc1 {[%clk 00:37:23]} {[%emt
00:05:32]} b6 {[%clk 00:36:02]} {[%emt 00:07:21]} 25. Rc7 {[%clk 00:27:06]}
{[%emt 00:10:47]} a6 {[%clk 00:33:47]} {[%emt 00:02:44]} 26. Nd6 {[%clk
00:26:31]} {[%emt 00:01:06]} Nd5 {[%clk 00:31:24]} {[%emt 00:02:52]} 27. Rc6
{[%clk 00:26:54]} {[%emt 00:00:08]} b5 {[%clk 00:24:16]} {[%emt 00:07:38]} 28.
e4 {[%clk 00:26:22]} {[%emt 00:01:01]} Ne7 {[%clk 00:23:27]} {[%emt 00:01:19]}
29. Rc7 {[%clk 00:23:45]} {[%emt 00:03:07]} Nd5 {[%clk 00:20:54]} {[%emt
00:03:04]} 30. Rxf7 {[%clk 00:21:32]} {[%emt 00:02:43]} Qxd6 {[%clk 00:18:53]}
{[%emt 00:02:31]} 31. Rxf8+ {[%clk 00:21:49]} {[%emt 00:00:13]} Rxf8 {[%clk
00:18:56]} {[%emt 00:00:27]} 32. exd5 {[%clk 00:22:12]} {[%emt 00:00:06]} exd5
{[%clk 00:16:13]} {[%emt 00:03:13]} 33. Rxd5 {[%clk 00:22:15]} {[%emt
00:00:28]} Qf6 {[%clk 00:15:36]} {[%emt 00:01:06]} 34. Qe3 {[%clk 00:21:53]}
{[%emt 00:00:51]} h6 {[%clk 00:15:25]} {[%emt 00:00:42]} 35. Rd4 {[%clk
00:20:34]} {[%emt 00:01:50]} Kh8 {[%clk 00:14:55]} {[%emt 00:00:59]} 36. Kg2
{[%clk 00:20:44]} {[%emt 00:00:20]} Qc6+ {[%clk 00:14:28]} {[%emt 00:00:57]} 37.
Qe4 {[%clk 00:20:16]} {[%emt 00:00:59]} 1/2-1/2

[Event "NJSK 2023 Jeugd C"]
[Site "Almelo, Netherlands"]
[Date "2023.05.04"]
[Round "6.6"]
[White "Van Batenburg, Mees"]
[Black "Lopes, Samuel"]
[Result "1-0"]
[TimeControl "90min/40moves + 30min + 30sec/move"]
[WhiteElo "2054"]
[BlackElo "1865"]

1. e4 {[%clk 01:30:46]} {[%emt 00:00:14]} c5 {[%clk 01:30:48]} {[%emt
00:00:12]} 2. b4 {[%clk 01:31:13]} {[%emt 00:00:04]} cxb4 {[%clk 01:31:05]}
{[%emt 00:00:13]} 3. a3 {[%clk 01:31:39]} {[%emt 00:00:04]} e6 {[%clk
01:30:22]} {[%emt 00:01:13]} 4. d4 {[%clk 01:31:49]} {[%emt 00:00:20]} d5
{[%clk 01:28:00]} {[%emt 00:02:52]} 5. e5 {[%clk 01:31:40]} {[%emt 00:00:39]}
Bd7 {[%clk 01:26:23]} {[%emt 00:02:07]} 6. axb4 {[%clk 01:30:07]} {[%emt
00:02:03]} Bxb4+ {[%clk 01:25:38]} {[%emt 00:01:14]} 7. c3 {[%clk 01:30:33]}
{[%emt 00:00:04]} Bf8 {[%clk 01:24:23]} {[%emt 00:01:45]} 8. Bd3 {[%clk
01:30:38]} {[%emt 00:00:25]} Ne7 {[%clk 01:23:21]} {[%emt 00:01:31]} 9. Ne2
{[%clk 01:29:58]} {[%emt 00:01:11]} Ng6 {[%clk 01:23:26]} {[%emt 00:00:26]} 10.
O-O {[%clk 01:27:02]} {[%emt 00:03:26]} Be7 {[%clk 01:23:28]} {[%emt 00:00:28]}
11. f4 {[%clk 01:26:07]} {[%emt 00:01:25]} O-O {[%clk 01:18:42]} {[%emt
00:05:16]} 12. Na3 {[%clk 01:17:41]} {[%emt 00:08:57]} a6 {[%clk 01:16:44]}
{[%emt 00:02:28]} 13. Ng3 {[%clk 01:14:58]} {[%emt 00:03:12]} f5 {[%clk
01:13:25]} {[%emt 00:03:49]} 14. exf6 {[%clk 01:05:07]} {[%emt 00:10:21]} Rxf6
{[%clk 01:09:25]} {[%emt 00:04:29]} 15. f5 {[%clk 00:56:14]} {[%emt 00:09:24]}
exf5 {[%clk 01:07:45]} {[%emt 00:02:10]} 16. Nxf5 {[%emt 00:00:36]} Bxf5 {[%clk
01:04:08]} {[%emt 00:04:05]} 17. Bxf5 {[%clk 00:55:38]} {[%emt 00:01:02]} Nh4
{[%clk 01:03:29]} {[%emt 00:01:08]} 18. Bd3 {[%emt 00:14:20]} Rxf1+ {[%clk
00:57:17]} {[%emt 00:01:29]} 19. Qxf1 {[%clk 00:47:10]} {[%emt 00:00:21]} Nd7
{[%clk 00:52:36]} {[%emt 00:05:12]} 20. Nc2 {[%clk 00:44:40]} {[%emt 00:03:01]}
Ng6 {[%clk 00:34:32]} {[%emt 00:18:34]} 21. Qf5 {[%clk 00:34:33]} {[%emt
00:10:36]} Nf6 {[%clk 00:33:57]} {[%emt 00:01:05]} 22. Ne3 {[%clk 00:30:04]}
{[%emt 00:04:59]} Qc8 {[%clk 00:31:45]} {[%emt 00:02:42]} 23. Nxd5 {[%clk
00:29:07]} {[%emt 00:01:27]} Nxd5 {[%clk 00:27:18]} {[%emt 00:04:58]} 24. Qxd5+
{[%clk 00:29:26]} {[%emt 00:00:11]} Kh8 {[%clk 00:27:39]} {[%emt 00:00:09]} 25.
Bd2 {[%clk 00:28:43]} {[%emt 00:01:13]} Rb8 {[%clk 00:26:18]} {[%emt 00:01:50]}
26. Re1 {[%clk 00:25:55]} {[%emt 00:03:19]} Bf6 {[%clk 00:22:25]} {[%emt
00:04:23]} 27. Bxg6 {[%clk 00:21:48]} {[%emt 00:04:38]} hxg6 {[%clk 00:22:39]}
{[%emt 00:00:16]} 28. Re3 {[%clk 00:22:12]} {[%emt 00:00:06]} Qg4 {[%clk
00:19:35]} {[%emt 00:03:33]} 29. Rh3+ {[%clk 00:22:25]} {[%emt 00:00:18]} Bh4
{[%clk 00:19:57]} {[%emt 00:00:08]} 30. Qf3 {[%clk 00:22:41]} {[%emt 00:00:14]}
Qxf3 {[%clk 00:17:54]} {[%emt 00:02:33]} 31. gxf3 {[%clk 00:22:46]} {[%emt
00:00:25]} a5 {[%clk 00:17:57]} {[%emt 00:00:27]} 32. Rxh4+ {[%clk 00:22:49]}
{[%emt 00:00:27]} Kg8 {[%clk 00:18:21]} {[%emt 00:00:06]} 33. Re4 {[%clk
00:19:35]} {[%emt 00:03:45]} b5 {[%clk 00:17:17]} {[%emt 00:01:35]} 34. Re1
{[%clk 00:19:50]} {[%emt 00:00:14]} Rd8 {[%clk 00:16:15]} {[%emt 00:01:30]} 35.
Be3 {[%clk 00:18:41]} {[%emt 00:01:42]} Rc8 {[%clk 00:16:05]} {[%emt 00:00:40]}
36. Rc1 {[%clk 00:18:20]} {[%emt 00:00:51]} Kf7 {[%clk 00:15:56]} {[%emt
00:00:39]} 37. Kf2 {[%clk 00:17:38]} {[%emt 00:01:12]} Ke6 {[%clk 00:15:40]}
{[%emt 00:00:46]} 38. Ke2 {[%clk 00:17:41]} {[%emt 00:00:27]} Kd5 {[%clk
00:15:49]} {[%emt 00:00:21]} 39. Kd3 {[%clk 00:18:05]} {[%emt 00:00:06]} Rf8
{[%clk 00:15:56]} {[%emt 00:00:24]} 40. f4 {[%clk 00:17:30]} {[%emt 00:01:04]}
Rh8 {[%clk 00:16:16]} {[%emt 00:00:09]} 41. Rc2 {[%clk 00:17:29]} {[%emt
00:00:32]} Rh3 {[%clk 00:16:13]} {[%emt 00:00:33]} 42. Rb2 {[%clk 00:16:42]}
{[%emt 00:01:16]} Kc6 {[%clk 00:16:01]} {[%emt 00:00:43]} 43. Ke4 {[%clk
00:16:35]} {[%emt 00:00:37]} Rh5 {[%clk 00:16:20]} {[%emt 00:00:11]} 44. Rd2
{[%clk 00:15:34]} {[%emt 00:01:32]} Rd5 {[%clk 00:16:27]} {[%emt 00:00:22]} 45.
Rg2 {[%clk 00:15:49]} {[%emt 00:00:15]} Rd6 {[%clk 00:16:43]} {[%emt 00:00:15]}
46. d5+ {[%clk 00:14:59]} {[%emt 00:01:20]} Kd7 {[%clk 00:16:38]} {[%emt
00:00:35]} 47. Rb2 {[%clk 00:15:12]} {[%emt 00:00:17]} Ra6 {[%clk 00:15:51]}
{[%emt 00:01:17]} 48. Rxb5 {[%clk 00:15:24]} {[%emt 00:00:18]} a4 {[%clk
00:16:13]} {[%emt 00:00:07]} 49. Rb2 {[%clk 00:15:26]} {[%emt 00:00:28]} a3
{[%clk 00:16:28]} {[%emt 00:00:15]} 50. Ra2 {[%clk 00:15:51]} {[%emt 00:00:06]}
Kd6 {[%clk 00:16:40]} {[%emt 00:00:17]} 51. c4 {[%clk 00:16:08]} {[%emt
00:00:12]} Ra4 {[%clk 00:16:55]} {[%emt 00:00:15]} 52. Kd4 {[%clk 00:16:29]}
{[%emt 00:00:10]} Ra5 {[%clk 00:17:02]} {[%emt 00:00:23]} 53. Bd2 {[%clk
00:16:39]} {[%emt 00:00:20]} Ra4 {[%clk 00:17:22]} {[%emt 00:00:10]} 54. Rxa3
{[%clk 00:16:59]} {[%emt 00:00:10]} 1-0